lending/lending_fUSD_20260206
["ID","MTS","AMOUNT","RATE_DAILY","PERIOD"]
[404672188,1770408636049,-500.0,0.00013698,2]
[404672189,1770408636059,-500.0,0.00013698,2]
[404672190,1770408636068,-500.0,0.00013698,2]
[404672191,1770408636077,-500.0,0.00013698,2]
[404672192,1770408636086,-500.0,0.00013698,2]
[404672193,1770408636097,-500.0,0.00013698,2]
[404672194,1770408636107,-500.0,0.00013698,2]
[404672195,1770408636117,-500.0,0.00013698,2]
[404672196,1770408636126,-500.0,0.00013698,2]
[404672197,1770408636136,-500.0,0.00013698,2]
[404672198,1770408636146,-500.0,0.00013698,2]
[404672199,1770408636156,-377.87779755,0.00013698,2]
[404672200,1770408636165,-500.0,0.00013698,2]
[404672201,1770408636175,-503.69401691,0.00013698,2]
[404672202,1770408636184,-500.0,0.00013698,2]
[404672203,1770408636194,-500.0,0.00013698,2]
[404672204,1770408636203,-500.0,0.00013698,2]
[404672205,1770408636212,-500.0,0.00013698,2]
[404672206,1770408636222,-500.0,0.00013698,2]
[404672207,1770408636231,-500.0,0.00013698,2]
[404672208,1770408636240,-499.07717384,0.00013698,2]
[404672209,1770408636249,-500.0,0.00013698,2]
[404672210,1770408636259,-500.0,0.00013698,2]
[404672211,1770408636268,-500.0,0.00013698,2]
[404672212,1770408636277,-500.0,0.00013698,2]
[404672213,1770408636287,-500.0,0.00013698,2]
[404672214,1770408636296,-500.0,0.00013698,2]
[404672215,1770408636305,-500.0,0.00013698,2]
[404672216,1770408636315,-500.0,0.00013698,2]
[404672217,1770408636324,-500.0,0.00013698,2]
[404672218,1770408636333,-500.0,0.00013698,2]
[404672219,1770408636343,-500.0,0.00013698,2]
[404672220,1770408636352,-500.0,0.00013698,2]
[404672221,1770408636363,-500.0,0.00013698,2]
[404672222,1770408636372,-500.0,0.00013698,2]
[404672223,1770408636381,-500.0,0.00013698,2]
[404672224,1770408636391,-516.54058196,0.00013698,2]
[404672225,1770408636400,-500.0,0.00013698,2]
[404672226,1770408636409,-500.0,0.00013698,2]
[404672227,1770408636419,-500.0,0.00013698,2]
[404672228,1770408636428,-500.0,0.00013698,2]
[404672229,1770408636438,-500.0,0.00013698,2]
[404672230,1770408636447,-500.0,0.00013698,2]
[404672231,1770408636459,-500.0,0.00013698,2]
[404672232,1770408636469,-500.0,0.00013698,2]
[404672233,1770408636478,-532.65205018,0.00013698,2]
[404672234,1770408636487,-500.0,0.00013698,2]
[404672235,1770408636497,-500.0,0.00013698,2]
[404672236,1770408636508,-500.0,0.00013698,2]
[404672237,1770408636517,-587.5541255,0.00013698,2]
[404672238,1770408636527,-500.0,0.00013698,2]
[404672239,1770408636536,-523.26417397,0.00013698,2]
[404672240,1770408636545,-500.0,0.00013698,2]
[404672241,1770408636555,-500.0,0.00013698,2]
[404672242,1770408636564,-500.0,0.00013698,2]
[404672243,1770408636573,-500.0,0.00013698,2]
[404672244,1770408636581,-500.0,0.00013698,2]
[404672245,1770408636591,-500.0,0.00013698,2]
[404672246,1770408636599,-283.9117133,0.00013698,2]
[404672247,1770408636609,-500.0,0.00013698,2]
[404672248,1770408636618,-500.0,0.00013698,2]
[404672249,1770408636627,-477.29936804,0.00013698,2]
[404672250,1770408636636,-374.7451931,0.00013698,2]
[404672251,1770408636645,-500.0,0.00013698,2]
[404672252,1770408636655,-500.0,0.00013698,2]
[404672253,1770408636663,-500.0,0.00013698,2]
[404672254,1770408636673,-500.0,0.00013698,2]
[404672255,1770408636683,-500.0,0.00013698,2]
[404672256,1770408636692,-471.0960947,0.00013698,2]
[404672257,1770408636701,-500.0,0.00013698,2]
[404672258,1770408636710,-500.0,0.00013698,2]
[404672259,1770408636719,-500.0,0.00013698,2]
[404672260,1770408636728,-380.63494351,0.00013698,2]
[404672261,1770408636738,-500.0,0.00013698,2]
[404672262,1770408636747,-500.0,0.00013698,2]
[404672263,1770408636756,-500.0,0.00013698,2]
[404672264,1770408636766,-500.0,0.00013698,2]
[404672265,1770408636775,-500.0,0.00013698,2]
[404672266,1770408636784,-499.73386374,0.00013698,2]
[404672267,1770408636794,-500.0,0.00013698,2]
[404672268,1770408636803,-500.0,0.00013698,2]
[404672269,1770408636812,-500.0,0.00013698,2]
[404672270,1770408636821,-500.0,0.00013698,2]
[404672271,1770408636829,-500.0,0.00013698,2]
[404672272,1770408636839,-500.0,0.00013698,2]
[404672273,1770408636848,-326.5559361,0.00013698,2]
[404672274,1770408636857,-500.0,0.00013698,2]
[404672275,1770408636866,-171.67735349,0.00013698,2]
[404672276,1770408636875,-500.0,0.00013698,2]
[404672277,1770408636884,-500.0,0.00013698,2]
[404672278,1770408636893,-500.0,0.00013698,2]
[404672279,1770408636903,-500.0,0.00013698,2]
[404672280,1770408636912,-500.0,0.00013698,2]
[404672281,1770408636921,-500.0,0.00013698,2]
[404672282,1770408636930,-166.98,0.00013698,2]
[404672283,1770408636939,-500.0,0.00013698,2]
[404672284,1770408636948,-500.0,0.00013698,2]
[404672285,1770408636956,-500.0,0.00013698,2]
[404672286,1770408636966,-500.0,0.00013698,2]
[404672287,1770408636975,-500.0,0.00013698,2]
[404672288,1770408636984,-500.0,0.00013698,2]
[404672289,1770408636993,-500.0,0.00013698,2]
[404672290,1770408637002,-353.03533501,0.00013698,2]
[404672291,1770408637011,-384.73810332,0.00013698,2]
[404672292,1770408637020,-200.0,0.00013699,2]
[404672293,1770408637030,-500.0,0.00013699,2]
[404672294,1770408637039,-9035.0,0.00013966,2]
[404672295,1770408637048,-1000.0,0.00014247,2]
[404672296,1770408637058,-186.6020448,0.00014495,2]
[404672297,1770408637067,-10324.86838893,0.00014561,2]
[404672298,1770408637077,-30243.71964147,0.00014566,2]
[404672299,1770408637086,-1500.0,0.00014795,2]
[404672300,1770408637095,-250.0,0.00015,2]
[404672301,1770408637105,-371.675712,0.00015138,7]
[404672302,1770408637114,-1344.83858925,0.00015147,2]
[404672303,1770408637123,-500.0,0.00015254,2]
[404672304,1770408637134,-1000.0,0.00015342,2]
[404672305,1770408637143,-1387.0,0.00015362,2]
[404672306,1770408637153,-368.13902878,0.00015468,2]
[404672307,1770408637162,-190.3990808,0.00015468,2]
[404672308,1770408637171,-13456.85,0.00015646,2]
[404672309,1770408637180,-10324.86838893,0.00015674,2]
[404672310,1770408637189,-30243.71964147,0.00015677,2]
[404672311,1770408637198,-1901.02614896,0.00016486,2]
[404672312,1770408637207,-483.56,0.00016588,2]
[404672313,1770408637216,-1500.0,0.000167,2]
[404672314,1770408637225,-165.79,0.00016712,2]
[404672315,1770408637235,-1443.53509506,0.00016755,2]
[404672316,1770408637244,-10324.86838893,0.00016787,2]
[404672317,1770408637253,-30243.71964147,0.00016789,2]
[404672318,1770408637262,-1344.83858925,0.00016855,2]
[404672319,1770408637271,-422.7,0.00016868,2]
[404672320,1770408637281,-300.0,0.00017,2]
[404672321,1770408637290,-500.0,0.00017,2]
[404672322,1770408637299,-1500.0,0.00017,2]
[404672323,1770408637308,-225.37,0.00017016,2]
[404672324,1770408637318,-150.0,0.00017078,2]
[404672325,1770408637327,-1500.0,0.000172,2]
[404672326,1770408637336,-1443.53509504,0.00017328,2]
[404672327,1770408637345,-200.0,0.0001753,2]
[404672328,1770408637354,-1500.0,0.000176,2]
[404672329,1770408637364,-2998.4080897,0.0001764,2]
[404672330,1770408637373,-200.0,0.00017721,2]
[404672331,1770408637382,-200.0,0.0001777,2]
[404672332,1770408637392,-269.21790622,0.00017785,5]
[404672333,1770408637401,-10124.443065,0.00017797,2]
[404672334,1770408637411,-703.70371,0.0001782,2]
[404672335,1770408637422,-703.7037,0.0001782,2]
[404672336,1770408637432,-309.72976,0.00017891,7]
[404672337,1770408637441,-500.0,0.000179,2]
[404672338,1770408637452,-2838.08958568,0.000179,2]
[404672339,1770408637463,-240.04973375,0.000179,2]
[404672340,1770408637472,-30243.71964147,0.000179,2]
[404672341,1770408637481,-1443.53509504,0.000179,2]
[404672342,1770408637491,-10324.86838893,0.000179,2]
[404672343,1770408637502,-151.22058322,0.00017957,2]
[404672344,1770408637512,-1448.66814703,0.0001799,2]
[404672345,1770408637521,-1448.66814703,0.0001799,2]
[404672346,1770408637532,-200.0,0.00017991,2]
[404672347,1770408637542,-300.0,0.00017999,2]
[404672348,1770408637552,-411.23606988,0.00017999,2]
[404672349,1770408637561,-666.0,0.00017999,2]
[404672350,1770408637570,-725512.25785041,0.00018,2]
[404672351,1770408637588,-212698.05137683,0.00018,2]
[404672352,1770408637600,-216491.50989987,0.00018,2]
[404672353,1770408637611,-344685.70659587,0.00018,2]
[404672354,1770408637622,-1254.41808677,0.00018,2]
[404672355,1770408637637,-273.63724884,0.00018,2]
[404672356,1770408637648,-34386.04186184,0.00018,2]
[404672357,1770408637682,-500.0,9.026e-05,2]
[404672358,1770408637692,-2631.14960791,0.00018,2]
[404672359,1770408637704,-7096.3,0.00018,2]
[404672360,1770408637715,-5970.1415697,0.00018,2]
[404672365,1770408638066,-166.31971927,8.862e-05,2]
[404672366,1770408638076,-150.0,8.862e-05,2]
[404672367,1770408638085,-150.0,8.862e-05,2]
[404672368,1770408638096,-150.0,8.862e-05,2]
[404672369,1770408638107,-58.69095684,8.917e-05,2]
[404672370,1770408638121,-91.30904316,8.917e-05,2]
[404672371,1770408638131,-150.0,9.081e-05,2]
[404672372,1770408638141,-151.0,0.00010373,2]
[404672373,1770408638151,-2475.0,0.00016712,2]
[404672374,1770408638161,-186.60204479,0.000179,2]
[404672375,1770408638170,-7268.08992944,0.00018,2]
[404672376,1770408638182,-3630.4613416,0.00018,2]
[404672377,1770408638194,-1046.26,0.00018,2]
[404672378,1770408638205,-498.98998669,0.00018,2]
[404672379,1770408638217,-6304689.4547561,0.00018,2]
[404672381,1770408640291,-3586149.27629037,0.00018,2]
[404672382,1770408640300,-1632819.55332783,0.00018,2]
[404672383,1770408640312,-351.46849696,0.00018,2]
[404672384,1770408640341,-788.3938855,0.00018,2]
[404672385,1770408640416,-6061.80815502,0.00018,2]
[404672386,1770408640561,-268.361,0.00018,2]
[404672387,1770408640579,-363.25709748,0.00018,2]
[404672417,1770408643951,-1140.45817616,0.00013698,2]
[404672418,1770408643961,-752041.16900085,0.00018,2]
[404672433,1770408646092,-471.24136053,0.00013598,2]
[404672434,1770408646104,-806.04191812,0.00013598,2]
[404672441,1770408648984,-467.74106694,0.00013598,2]
[404672442,1770408648996,-1104.89183922,0.00013598,2]
[404672443,1770408649007,-3074.0150822,0.00013598,2]
[404672444,1770408649019,-1189.33499715,0.00013598,2]
[404672445,1770408649047,-2886.73373584,0.00013598,2]
[404672446,1770408649056,-592688.15987892,0.00018,2]
[404672447,1770408649068,-62337.09761277,0.00018,2]
[404672448,1770408649079,-1587.96134191,0.00018,2]
[404672449,1770408649090,-436576.0251439,0.00018,2]
[404672450,1770408649106,-620250.0,0.00018,2]
[404672451,1770408649119,-1867.16498467,0.00018,2]
[404672452,1770408649130,-11825.00006151,0.00018,2]
[404672453,1770408696351,799.0,0.00035616,120]
[404672454,1770408720916,10000.01,7.77e-05,2]
[404672455,1770408720939,6585.51,7.77e-05,2]
[404672456,1770408723338,760.0,0.0003561,120]
[404672457,1770408739737,500.0,7.883e-05,2]
[404672458,1770408739820,500.0,7.883e-05,2]
[404672459,1770408739865,500.0,7.883e-05,2]
[404672460,1770408739901,500.0,7.883e-05,2]
[404672461,1770408739943,500.0,7.883e-05,2]
[404672462,1770408739986,284.30399701,7.883e-05,2]
[404672463,1770408740027,500.0,7.883e-05,2]
[404672464,1770408740063,130.19600299,7.883e-05,2]
[404672465,1770408740088,369.80399701,7.883e-05,2]
[404672466,1770408752006,284.30399701,7.883e-05,2]
[404672467,1770408778857,215.69600298,7.883e-05,2]
[404672468,1770408783316,500.0,8.219e-05,2]
[404672469,1770408783372,500.0,8.219e-05,2]
[404672470,1770408783442,500.0,8.219e-05,2]
[404672471,1770408783699,201.46583627,8.219e-05,2]
[404672472,1770408783738,500.0,8.219e-05,2]
[404672473,1770408784088,500.0,8.219e-05,2]
[404672474,1770408946305,799.0,0.00035616,120]
[404672475,1770408948697,500.0,7.77e-05,2]
[404672476,1770409190305,799.0,0.00035616,120]
[404672477,1770409450762,500.0,0.00035616,120]
[404672479,1770409559583,10000.01,8e-05,2]
[404672480,1770409559604,10000.01,8e-05,2]
[404672481,1770409559626,272.20589313,8e-05,2]
[404672482,1770409596128,-514.92351115,0.00010473,2]
[404672483,1770409613330,799.0,0.00035616,120]
[404672484,1770409647776,700.0,0.000116,4]
[404672485,1770409649864,1400.0,0.000117,4]
[404672486,1770409651949,2100.0,0.000118,4]
[404672487,1770409654137,2800.0,0.000119,4]
[404672501,1770409721155,8492.45639557,9e-05,2]
[404672527,1770409832272,-230.0,9.751e-05,2]
[404672528,1770409832282,-472.9789746,9.776e-05,2]
[404672529,1770409832293,-50.61783549,9.776e-05,2]
[404672530,1770409832303,-205.0,9.8e-05,2]
[404672531,1770409832313,-300.0,9.95e-05,2]
[404672532,1770409832323,-300.0,9.999e-05,2]
[404672533,1770409832333,-300.0,9.999e-05,2]
[404672534,1770409832342,-983.88219341,0.0001,2]
[404672535,1770409832354,-428.73354967,0.0001,2]
[404672536,1770409832365,-522.29245919,0.0001,2]
[404672537,1770409832375,-2381.44960466,0.0001,2]
[404672538,1770409832439,-359.0233249,0.0001,2]
[404672539,1770409832449,-540.9766751,0.0001,2]
[404672540,1770409832495,-7849.719,0.0001,2]
[404672541,1770409832507,-261.51995834,0.0001,2]
[404672544,1770409832519,-14183.29134223,0.0001,2]
[404672546,1770409832528,-260.29161735,0.000101,2]
[404672548,1770409832538,-1204.92910957,0.000101,2]
[404672550,1770409832547,-300.0,0.00010243,2]
[404672552,1770409832557,-168.46690265,0.00010243,2]
[404672554,1770409832567,-372.29195841,0.00010433,2]
[404672563,1770409838281,-474.1000015,0.00010433,2]
[404672564,1770409838294,-796.24490861,0.00010433,2]
[404672565,1770409838305,-11010.18480499,0.00010433,2]
[404672566,1770409838315,-1037.58659731,0.00010433,2]
[404672567,1770409838325,-250.0,0.00010447,2]
[404672568,1770409838335,-500.0,0.00010499,2]
[404672569,1770409838345,-500.0,0.00010499,2]
[404672570,1770409838355,-391.02608539,0.00010499,2]
[404672571,1770409838366,-500.0,0.00010499,2]
[404672572,1770409838376,-476.03377745,0.00010499,2]
[404672573,1770409838390,-14974.62541129,0.000105,2]
[404672574,1770409838402,-500.0,0.000105,2]
[404672575,1770409838415,-3484525.37458871,0.000105,2]
[404672576,1770409838425,-250.0,0.00010533,2]
[404672577,1770409838436,-95061.09954861,0.000106,2]
[404672578,1770409838447,-500.0,0.00010726,2]
[404672579,1770409838457,-300.0,0.0001078,2]
[404672580,1770409838468,-300.0,0.0001078,2]
[404672581,1770409838479,-1029.68956309,0.000108,2]
[404672582,1770409838489,-2483.32838748,0.000109,2]
[404672583,1770409838500,-4584.8,0.00010959,2]
[404672584,1770409838510,-9999.99,0.00010959,2]
[404672585,1770409838520,-177.69479531,0.00010959,2]
[404672586,1770409838530,-9999.99,0.00010994,2]
[404672587,1770409838541,-310.94,0.00010994,2]
[404672588,1770409838551,-5274.08,0.00010994,2]
[404672589,1770409838561,-420.0,0.00010999,2]
[404672590,1770409838571,-9441.3924389,0.00011,2]
[404672591,1770409838581,-1397.53696273,0.00011099,2]
[404672592,1770409838591,-150.99,0.00011197,2]
[404672593,1770409838601,-9999.99,0.00011197,2]
[404672594,1770409838611,-999.99,0.00011197,2]
[404672595,1770409838621,-9999.99,0.00011197,2]
[404672596,1770409838633,-10073.55,0.00011197,2]
[404672597,1770409838643,-969.77,0.00011197,2]
[404672598,1770409838652,-299.99,0.00011198,2]
[404672599,1770409838663,-9999.99,0.00011198,2]
[404672600,1770409838672,-150.99,0.00011198,2]
[404672601,1770409838682,-6908.73,0.00011233,2]
[404672602,1770409838692,-195.0,0.00011462,2]
[404672603,1770409838702,-250.0,0.00011462,2]
[404672604,1770409838711,-969.77,0.00011471,2]
[404672605,1770409838721,-2483.32838747,0.000115,2]
[404672606,1770409838731,-195.0,0.0001152,2]
[404672607,1770409838741,-195.0,0.0001163,2]
[404672608,1770409838751,-1204.92910957,0.00011736,2]
[404672609,1770409838760,-969.77,0.00011745,2]
[404672610,1770409838770,-1397.53696266,0.00011832,2]
[404672611,1770409838780,-969.77,0.00012019,2]
[404672612,1770409838790,-2500.0,0.00012058,2]
[404672613,1770409838799,-587.0,0.00012099,2]
[404672614,1770409838812,-969.77,0.00012293,2]
[404672615,1770409838822,-150.0,0.00012341,2]
[404672616,1770409838831,-150.0,0.00012341,2]
[404672617,1770409838840,-200.0,0.00012396,2]
[404672618,1770409838851,-308.03413378,0.000125,2]
[404672619,1770409838861,-1397.53696266,0.00012565,2]
[404672620,1770409838871,-2483.32838747,0.00012566,2]
[404672621,1770409838883,-969.77,0.00012567,2]
[404672622,1770409838893,-160.0,0.00012715,2]
[404672623,1770409838903,-969.77,0.00012841,2]
[404672624,1770409838913,-250.0,0.00012949,2]
[404672625,1770409838922,-206.89,0.00012968,2]
[404672626,1770409838932,-5616.6537447,0.00013,2]
[404672627,1770409838942,-357.78028329,0.00013,2]
[404672628,1770409838951,-677.9138459,0.00013,2]
[404672629,1770409838961,-969.77,0.00013115,2]
[404672630,1770409838971,-151.0,0.00013138,2]
[404672631,1770409838980,-151.0,0.00013138,2]
[404672632,1770409838990,-151.0,0.00013138,2]
[404672633,1770409838999,-151.0,0.00013138,2]
[404672634,1770409839009,-151.0,0.00013138,2]
[404672635,1770409839019,-151.0,0.00013138,2]
[404672636,1770409839028,-151.0,0.00013138,2]
[404672637,1770409839039,-151.0,0.00013138,2]
[404672638,1770409839049,-151.0,0.00013138,2]
[404672639,1770409839059,-151.0,0.00013138,2]
[404672640,1770409839069,-151.0,0.00013138,2]
[404672641,1770409839078,-151.0,0.00013138,2]
[404672642,1770409839088,-151.0,0.00013138,2]
[404672643,1770409839097,-151.0,0.00013138,2]
[404672644,1770409839107,-151.0,0.00013138,2]
[404672645,1770409839116,-151.0,0.00013138,2]
[404672646,1770409839126,-151.0,0.00013138,2]
[404672647,1770409839136,-151.0,0.00013138,2]
[404672648,1770409839145,-151.0,0.00013138,2]
[404672649,1770409839154,-151.0,0.00013138,2]
[404672650,1770409839163,-5472.5621536,0.00013146,2]
[404672651,1770409839173,-1397.53696266,0.00013299,2]
[404672652,1770409839183,-823.0,0.00013309,2]
[404672653,1770409839192,-1204.92910957,0.00013371,2]
[404672654,1770409839201,-969.77,0.00013389,2]
[404672655,1770409839211,-600.0,0.00013414,2]
[404672656,1770409839221,-2483.32838747,0.00013633,2]
[404672657,1770409839230,-969.77,0.00013663,2]
[404672658,1770409839240,-500.0,0.00013698,2]
[404672659,1770409839250,-500.0,0.00013698,2]
[404672660,1770409839260,-441.42781649,0.00013698,2]
[404672661,1770409839270,-511.81,0.00013699,2]
[404672662,1770409839279,-969.77,0.00013937,2]
[404672663,1770409839289,-1397.53696266,0.00014032,2]
[404672664,1770409839298,-1037.58659731,0.00014167,2]
[404672665,1770409839308,-969.85,0.00014211,2]
[404672666,1770409839318,-257.9,0.00014367,2]
[404672667,1770409839328,-511.81,0.00014384,2]
[404672668,1770409839338,-225.44,0.00014477,2]
[404672669,1770409839347,-1152.0,0.0001464,2]
[404672670,1770409839357,-2483.32838747,0.000147,2]
[404672671,1770409839367,-1397.53696266,0.00014766,2]
[404672672,1770409839377,-250.0,0.00015,2]
[404672673,1770409839388,-2052.7152301,0.00015,2]
[404672674,1770409839398,-7991.45940556,0.00015,2]
[404672675,1770409839407,-1204.92910957,0.00015007,2]
[404672676,1770409839417,-511.81,0.00015068,2]
[404672677,1770409839427,-926.80859507,0.00015299,2]
[404672678,1770409839436,-2782.014,0.00015399,2]
[404672679,1770409839446,-234.643,0.00015399,2]
[404672680,1770409839455,-1397.53696266,0.00015499,2]
[404672681,1770409839465,-7873.41,0.00015702,2]
[404672682,1770409839474,-926.80859507,0.00015733,2]
[404672683,1770409839484,-511.81,0.00015753,2]
[404672684,1770409839493,-2483.32838747,0.00015767,2]
[404672685,1770409839503,-1684.38821203,0.00015803,2]
[404672686,1770409839513,-2242.664997,0.00015807,2]
[404672687,1770409839522,-3500.0,0.000159,5]
[404672688,1770409839531,-3319.5632726,0.00016,2]
[404672689,1770409839541,-1613.0,0.00016103,2]
[404672690,1770409839550,-926.80859507,0.00016166,2]
[404672691,1770409839560,-512349.65734393,0.000162,5]
[404672692,1770409839569,-1397.53696266,0.00016233,2]
[404672693,1770409839579,-453.98370731,0.00016438,2]
[404672694,1770409839590,-511.81,0.00016438,2]
[404672695,1770409839600,-227.37,0.00016438,2]
[404672696,1770409839610,-200.0,0.00016544,2]
[404672697,1770409839620,-7830.53973031,0.00016581,2]
[404672698,1770409839632,-926.80859507,0.000166,2]
[404672699,1770409839642,-13440.81,0.00016632,2]
[404672700,1770409839653,-1204.92910957,0.00016643,2]
[404672701,1770409839664,-1500.0,0.000168,2]
[404672702,1770409839674,-390.259499,0.00016817,7]
[404672703,1770409839684,-2483.32838747,0.00016833,2]
[404672704,1770409839696,-1397.53696266,0.00016966,2]
[404672705,1770409839706,-500.0,0.00017,2]
[404672706,1770409839718,-300.0,0.00017,2]
[404672707,1770409839729,-371.16179058,0.00017,2]
[404672708,1770409839739,-358403.1909163,0.00017,2]
[404672709,1770409839750,-926.80859507,0.00017033,2]
[404672710,1770409839760,-35060.4234962,0.00017076,2]
[404672711,1770409839769,-1500.0,0.000172,2]
[404672712,1770409839779,-5948.97023938,0.00017443,2]
[404672713,1770409839788,-926.80859507,0.00017467,2]
[404672714,1770409839798,-700.0,0.000175,6]
[404672715,1770409839810,-200.0,0.00017514,2]
[404672716,1770409839819,-151.22058322,0.00017558,2]
[404672717,1770409839829,-379.0,0.00017594,2]
[404672718,1770409839838,-1500.0,0.000176,2]
[404672719,1770409839849,-700.0,0.000176,6]
[404672720,1770409839859,-152.07163997,0.00017616,2]
[404672721,1770409839868,-10000.0,0.00017618,2]
[404672722,1770409839879,-206.16113246,0.00017636,2]
[404672723,1770409839889,-1499.20404486,0.0001764,2]
[404672724,1770409839898,-400.0,0.0001766,2]
[404672725,1770409839908,-1397.53696266,0.000177,2]
[404672726,1770409839918,-700.0,0.000177,6]
[404672727,1770409839927,-206.16113244,0.00017702,2]
[404672728,1770409839939,-200.0,0.00017703,2]
[404672729,1770409839949,-379.0,0.00017712,2]
[404672730,1770409839959,-2258.0,0.00017714,2]
[404672731,1770409839968,-379.0,0.00017756,2]
[404672732,1770409839978,-379.0,0.00017758,2]
[404672733,1770409839988,-206.16113244,0.00017768,2]
[404672734,1770409839998,-1500000.0,0.000178,2]
[404672735,1770409840008,-700.0,0.000178,6]
[404672736,1770409840018,-329.82728308,0.00017807,2]
[404672737,1770409840028,-200.0,0.00017808,2]
[404672738,1770409840038,-379.0,0.00017819,2]
[404672739,1770409840047,-469.1358,0.0001782,2]
[404672740,1770409840057,-469.1358,0.0001782,2]
[404672741,1770409840067,-206.16113244,0.00017834,2]
[404672742,1770409840076,-379.0,0.00017895,2]
[404672743,1770409840086,-1000.0,0.000179,2]
[404672744,1770409840095,-500.0,0.000179,2]
[404672745,1770409840105,-33301.6812,0.000179,2]
[404672746,1770409840115,-206.16113244,0.000179,2]
[404672748,1770409840125,-926.80859507,0.000179,2]
[404672749,1770409840135,-829.0,0.000179,6]
[404672750,1770409840154,-2483.32838747,0.000179,2]
[404672751,1770409840165,-1037.58659731,0.000179,2]
[404672752,1770409840175,-500.0,0.000179,2]
[404672753,1770409840185,-500.0,0.000179,2]
[404672754,1770409840195,-500.0,0.000179,2]
[404672755,1770409840205,-500.0,0.000179,2]
[404672756,1770409840214,-500.0,0.000179,2]
[404672757,1770409840224,-500.0,0.000179,2]
[404672758,1770409840234,-500.0,0.000179,2]
[404672759,1770409840246,-347.68754819,0.000179,2]
[404672760,1770409840256,-1976.0,0.000179,2]
[404672761,1770409840266,-379.0,0.00017917,2]
[404672762,1770409840275,-379.0,0.00017923,2]
[404672763,1770409840285,-379.0,0.00017962,2]
[404672764,1770409840295,-8972.68091705,0.0001799,3]
[404672765,1770409840342,-437.70943335,0.0001799,3]
[404672766,1770409840459,-792.76026567,0.0001,2]
[404672767,1770409840469,-745.62183232,0.0001038,2]
[404672768,1770409840498,-938.09542968,0.0001038,2]
[404672769,1770409840507,-121.15957032,0.0001799,3]
[404672770,1770409840518,-330.47364721,0.0001799,3]
[404672771,1770409840530,-1559.04062305,0.0001799,3]
[404672772,1770409840613,-591.07158026,0.0001799,3]
[404672776,1770409840818,-113075.08962508,0.0001799,3]
[404672777,1770409840827,-324396.9750541,0.00017996,2]
[404672778,1770409840837,-4600.4555278,0.00017996,2]
[404672779,1770409840847,-23861.1973463,0.00017996,2]
[404672780,1770409840857,-300.0,0.00017999,2]
[404672781,1770409840866,-666.0,0.00017999,2]
[404672782,1770409840877,-4752069.11206492,0.00018,2]
[404672795,1770409844296,799.0,0.00035616,120]
[404672796,1770409844684,-500.0,0.00010499,2]
[404672797,1770409844694,-500.0,0.00010499,2]
[404672798,1770409844703,-500.0,0.00010499,2]
[404672799,1770409844712,-500.0,0.00010499,2]
[404672800,1770409844722,-500.0,0.00010499,2]
[404672801,1770409844732,-500.0,0.00010499,2]
[404672802,1770409844741,-500.0,0.00010499,2]
[404672803,1770409844751,-500.0,0.00010499,2]
[404672804,1770409844760,-605.34835716,0.00010499,2]
[404672805,1770409844769,-500.0,0.00010499,2]
[404672806,1770409844778,-500.0,0.00010499,2]
[404672807,1770409844787,-500.0,0.00010499,2]
[404672808,1770409844796,-500.0,0.00010499,2]
[404672809,1770409844808,-461.11012625,0.00018,2]
[404672810,1770409844837,-57.21372349,0.00018,2]
[404672811,1770409844848,-884.25993506,0.00018,2]